bitfinex/quotes_BTCUSD_20241110
["timestamp","ask_amount","ask_price","bid_price","bid_amount"]
[1731270528635,0.230825,79475.0,79466.0,0.02124866]
[1731270528835,0.2333423,79475.0,79467.0,0.02124866]
[1731270529165,0.125832,79471.0,79468.0,0.02124902]
[1731270529344,0.125839,79466.0,79457.0,0.18917777]
[1731270529545,0.125839,79466.0,79465.0,0.21042286]
[1731270529949,0.125839,79466.0,79465.0,0.02124509]
[1731270530535,0.525839,79466.0,79465.0,0.02124509]
[1731270531163,0.125852,79458.0,79457.0,0.18917777]
[1731270531365,0.125852,79458.0,79457.0,0.21038544]
[1731270531575,0.125852,79458.0,79457.0,0.02120767]
[1731270532620,0.206252,79458.0,79457.0,0.02120767]
[1731270533203,0.17754262,79458.0,79457.0,0.02120767]
[1731270533762,0.57754262,79458.0,79457.0,0.02120767]
[1731270533994,0.57754262,79458.0,79457.0,0.02219635]
[1731270534376,0.125854,79457.0,79456.0,0.000839]
[1731270534591,0.1283713,79457.0,79456.0,0.02202359]
[1731270535045,0.1283713,79457.0,79456.0,0.03526324]
[1731270536654,0.5283713,79457.0,79456.0,0.03526324]
[1731270536852,0.525854,79457.0,79456.0,0.03526324]
[1731270537590,0.525854,79457.0,79456.0,0.03626324]
[1731270537819,0.525854,79457.0,79456.0,0.01507865]
[1731270538022,0.525854,79457.0,79456.0,0.03623816]
[1731270539588,0.525854,79457.0,79456.0,0.01507865]
[1731270539805,0.525854,79457.0,79456.0,0.03623127]
[1731270540426,0.67182577,79457.0,79456.0,0.03623127]
[1731270540860,0.77182577,79457.0,79456.0,0.01507865]
[1731270541065,0.77182577,79457.0,79456.0,0.001839]
[1731270541295,0.77182577,79457.0,79451.0,0.001424]
[1731270541296,0.253862,79452.0,79451.0,0.001424]
[1731270541504,0.37684177,79447.0,79442.0,0.18917777]
[1731270542436,0.37684177,79447.0,79441.0,0.000839]
[1731270542653,0.015,79442.0,79441.0,0.000839]
[1731270542875,0.287777,79442.0,79441.0,0.000839]
[1731270543087,0.2902943,79442.0,79441.0,0.000839]
[1731270543327,0.44123651,79442.0,79441.0,0.000839]
[1731270543535,0.130893,79432.0,79422.0,0.18917777]
[1731270543750,0.66562428,79432.0,79422.0,0.18917777]
[1731270543960,0.69566328,79432.0,79422.0,0.18917777]
[1731270544636,1.09566328,79432.0,79422.0,0.18917777]
[1731270545292,0.125908,79423.0,79422.0,0.18917777]
[1731270545510,0.37439707,79423.0,79422.0,0.18917777]
[1731270545730,0.37187977,79423.0,79422.0,0.18917777]
[1731270545936,0.12592,79415.0,79414.0,0.18917777]
[1731270546181,0.12592,79415.0,79414.0,0.20236461]
[1731270546398,0.12592,79415.0,79414.0,0.01318684]
[1731270546631,0.12592,79415.0,79409.0,0.001424]
[1731270546632,0.4025173,79415.0,79409.0,0.001424]
[1731270546852,0.4,79415.0,79409.0,0.001424]
[1731270547065,0.1284393,79414.0,79409.0,0.001424]
[1731270547305,0.1284393,79414.0,79413.0,0.0134315]
[1731270549524,0.1284393,79414.0,79413.0,0.01341607]
[1731270549739,0.5284393,79414.0,79413.0,0.01341607]
[1731270550002,0.5284393,79414.0,79413.0,0.26335828]
[1731270550003,0.4,79414.0,79413.0,0.26335828]
[1731270550312,0.4,79414.0,79413.0,0.36141538]
[1731270550551,0.525922,79414.0,79413.0,0.28442265]
[1731270550969,0.4,79414.0,79413.0,0.28442265]
[1731270551595,0.4,79414.0,79413.0,0.41734565]
[1731270552057,0.4,79414.0,79413.0,0.41534565]
[1731270552263,0.4,79414.0,79413.0,0.48834615]
[1731270553577,0.4,79414.0,79413.0,0.48839493]
[1731270554024,0.4,79414.0,79413.0,0.48339493]
[1731270554202,0.4,79414.0,79413.0,0.48839493]
[1731270555104,0.4,79414.0,79413.0,0.49039493]
[1731270555364,0.38638469,79414.0,79413.0,0.48839493]
[1731270555575,0.26158882,79414.0,79413.0,0.60039493]
[1731270555813,0.22353287,79414.0,79413.0,0.7463667]
[1731270556074,0.14597177,79465.0,79413.0,0.91533847]
[1731270556279,0.2542063,79463.0,79441.0,0.251759]
[1731270556477,0.125846,79462.0,79445.0,0.125872]
[1731270556696,0.251702,79459.0,79446.0,0.16021959]
[1731270556911,0.0025173,79458.0,79447.0,0.16014638]
[1731270557117,0.251708,79457.0,79448.0,0.28608659]
[1731270557325,0.125861,79453.0,79449.0,0.05607787]
[1731270557531,0.125862,79452.0,79450.0,0.03427738]
[1731270557734,0.125862,79452.0,79451.0,0.03427738]
[1731270558429,0.125859,79454.0,79451.0,0.03427738]
[1731270558653,0.251716,79455.0,79449.0,0.1477427]
[1731270558654,0.12586,79453.0,79452.0,0.03427738]
[1731270559308,0.251692,79462.0,79452.0,0.1910085]
[1731270559552,0.12585,79460.0,79453.0,0.03427738]
[1731270559803,0.015,79471.0,79453.0,0.03427738]
[1731270559804,0.0815,79476.0,79459.0,0.18917777]
[1731270560037,0.05224067,79475.0,79460.0,0.16273632]
[1731270560288,0.251653,79475.0,79465.0,0.02110074]
[1731270560499,0.0025173,79477.0,79467.0,0.251676]
[1731270560756,0.251635,79480.0,79473.0,0.125828]
[1731270560757,0.0025173,79480.0,79473.0,0.125828]
[1731270560968,0.0025173,79480.0,79474.0,0.05532007]
[1731270561178,0.125825,79476.0,79475.0,0.03427738]
[1731270562730,0.525825,79476.0,79475.0,0.03427738]
[1731270563196,0.527503,79476.0,79475.0,0.03427738]
[1731270563600,0.527502,79476.0,79475.0,0.03398865]
[1731270564041,0.527502,79476.0,79475.0,0.0339887]
[1731270566136,0.527502,79476.0,79475.0,0.05630535]
[1731270566344,0.401678,79476.0,79475.0,0.05630535]
[1731270566509,0.401678,79476.0,79475.0,0.18224756]
[1731270566702,0.401678,79476.0,79475.0,0.32821933]
[1731270566941,0.401678,79476.0,79475.0,0.18224756]
[1731270567154,0.401678,79476.0,79475.0,0.1822221]
[1731270567484,0.401678,79476.0,79475.0,0.2031198]
[1731270567711,0.527502,79476.0,79475.0,0.0600792]
[1731270568699,0.401678,79476.0,79475.0,0.03396324]
[1731270569119,0.527502,79476.0,79475.0,0.03396324]
[1731270569588,0.401678,79476.0,79475.0,0.03396324]
[1731270569792,0.401678,79476.0,79475.0,0.03360834]
[1731270569997,0.401678,79476.0,79475.0,0.15955055]
[1731270570169,0.401678,79476.0,79475.0,0.30765416]
[1731270570735,0.401678,79476.0,79475.0,0.33374969]
[1731270571369,0.401678,79476.0,79475.0,0.30765416]
[1731270571552,0.401678,79476.0,79475.0,0.18182916]
[1731270571751,0.401678,79476.0,79475.0,0.30765416]
[1731270572141,0.401678,79476.0,79475.0,0.16126353]
[1731270572317,0.527502,79476.0,79475.0,0.16126353]
[1731270572528,0.401678,79476.0,79475.0,0.16126353]
[1731270572940,0.401678,79476.0,79475.0,0.13898492]
[1731270573388,0.401678,79476.0,79475.0,0.26480992]
[1731270574014,0.401678,79476.0,79475.0,0.29089271]
[1731270574220,0.401678,79476.0,79475.0,0.26480992]
[1731270574425,0.401678,79476.0,79475.0,0.29089271]
[1731270574637,0.401678,79476.0,79475.0,0.16506771]
[1731270575250,0.401678,79476.0,79475.0,0.13898492]
[1731270575469,0.401678,79476.0,79475.0,0.16506771]
[1731270575470,0.527502,79476.0,79475.0,0.16506771]
[1731270575684,0.527502,79476.0,79475.0,0.13898492]
[1731270576728,0.401678,79476.0,79475.0,0.13898492]
[1731270577155,0.401678,79476.0,79475.0,0.16506771]
[1731270577362,0.401678,79476.0,79475.0,0.13898492]
[1731270577363,0.527502,79476.0,79475.0,0.13898492]
[1731270577593,0.527502,79476.0,79475.0,0.12594221]
[1731270577734,0.401678,79476.0,79475.0,0.16510763]
[1731270577934,0.401678,79476.0,79475.0,0.16479873]
[1731270579714,0.401678,79476.0,79475.0,0.18568964]
[1731270579917,0.401678,79476.0,79475.0,0.20661132]
[1731270580342,0.527502,79476.0,79475.0,0.20661132]
[1731270580606,0.527502,79476.0,79475.0,0.18572041]
[1731270580807,0.527502,79476.0,79475.0,0.0600871]
[1731270581022,0.705502,79476.0,79475.0,0.03397579]
[1731270581238,0.125846,79462.0,79461.0,0.18917777]
[1731270581465,0.35233507,79462.0,79461.0,0.21012286]
[1731270581668,0.005,79459.0,79446.0,0.000839]
[1731270581889,0.125862,79452.0,79447.0,0.02618621]
[1731270582117,0.125862,79452.0,79451.0,0.21012906]
[1731270582342,0.125862,79452.0,79451.0,0.02095129]
[1731270582540,0.525862,79452.0,79451.0,0.02095129]
[1731270582953,0.525862,79452.0,79451.0,0.1468935]
[1731270583363,0.4,79452.0,79451.0,0.1468935]
[1731270584722,0.4,79452.0,79451.0,0.16784317]
[1731270584939,0.4,79452.0,79451.0,0.29370617]
[1731270585315,0.4,79452.0,79451.0,0.2727565]
[1731270585916,0.4,79452.0,79451.0,0.2735955]
[1731270586525,0.4,79452.0,79451.0,0.2835955]
[1731270586676,0.4,79452.0,79451.0,0.2905955]
[1731270587917,0.4,79452.0,79451.0,0.2885955]
[1731270588183,0.4,79452.0,79451.0,0.2835955]
[1731270588394,0.4,79452.0,79451.0,0.2785955]
[1731270589898,0.4,79452.0,79451.0,0.1477325]
[1731270590097,0.525862,79452.0,79451.0,0.1477325]
[1731270591319,0.525862,79452.0,79451.0,0.16871382]
[1731270591765,0.425862,79452.0,79451.0,0.1477325]
[1731270592047,0.425862,79452.0,79451.0,0.02179029]
[1731270592815,0.506362,79452.0,79451.0,0.02179029]
[1731270593013,0.653562,79452.0,79451.0,0.000839]
[1731270593239,0.653562,79452.0,79451.0,0.01394367]
[1731270593626,0.753562,79452.0,79451.0,0.01394367]
[1731270594665,0.753562,79452.0,79451.0,0.000839]
[1731270594865,0.753562,79452.0,79451.0,0.01393228]
[1731270595478,0.8052794,79452.0,79451.0,0.01393228]
[1731270595925,0.8052794,79452.0,79451.0,0.03487577]
[1731270596362,0.8052794,79452.0,79451.0,0.01393228]
[1731270597098,0.7052794,79452.0,79451.0,0.01393228]
[1731270598152,0.4,79452.0,79451.0,0.13987449]
[1731270598487,0.4,79452.0,79451.0,0.17487394]
[1731270598807,0.4,79452.0,79451.0,0.16080259]
[1731270599442,0.525862,79452.0,79451.0,0.16080259]
[1731270599799,0.525862,79452.0,79451.0,0.03486038]
[1731270601565,0.4,79452.0,79451.0,0.03486038]
[1731270602216,0.4,79452.0,79451.0,0.28666559]
[1731270603127,0.4,79452.0,79451.0,0.16080259]
[1731270603763,0.4,79452.0,79451.0,0.18172955]
[1731270603956,0.4,79452.0,79451.0,0.18172959]
[1731270604155,0.4,79452.0,79451.0,0.16080259]
[1731270604738,0.525862,79452.0,79451.0,0.16080259]
[1731270605456,0.525862,79452.0,79451.0,0.03486038]
[1731270605729,0.606362,79452.0,79451.0,0.03486038]
[1731270606631,0.606362,79452.0,79451.0,0.01392367]
[1731270607134,0.606362,79452.0,79451.0,0.03485969]
[1731270607863,0.525862,79452.0,79451.0,0.03485969]
[1731270608329,0.4,79452.0,79451.0,0.05101656]
[1731270608767,0.525862,79452.0,79451.0,0.05101656]
[1731270608981,0.4,79452.0,79451.0,0.17695877]
[1731270609190,0.4,79452.0,79451.0,0.30282177]
[1731270610032,0.401678,79452.0,79451.0,0.30282177]
[1731270610847,0.401678,79452.0,79451.0,0.30287387]
[1731270611089,0.401678,79452.0,79451.0,0.160854]
[1731270611090,0.52754,79452.0,79451.0,0.160854]
[1731270611304,0.401678,79452.0,79451.0,0.160854]
[1731270611521,0.52754,79452.0,79451.0,0.160854]
[1731270612136,0.401678,79452.0,79451.0,0.160854]
[1731270612288,0.401678,79452.0,79451.0,0.60137933]
[1731270612493,0.001678,79476.0,79474.0,0.125827]
[1731270612698,0.001678,79476.0,79474.0,0.285842]
[1731270617427,0.001678,79476.0,79474.0,0.25176921]
[1731270618121,0.001678,79476.0,79474.0,0.30157191]
[1731270618744,0.001678,79476.0,79474.0,0.33557629]
[1731270619833,0.001678,79476.0,79474.0,0.15994659]
[1731270620032,0.001678,79476.0,79474.0,0.28577359]
[1731270620445,0.001678,79476.0,79474.0,0.15994659]
[1731270620649,0.001678,79476.0,79474.0,0.28577359]
[1731270621486,0.001678,79476.0,79474.0,0.25176921]
[1731270621634,0.001678,79476.0,79474.0,0.28574474]
[1731270622627,0.001678,79476.0,79474.0,0.31188192]
[1731270623903,0.001678,79476.0,79474.0,0.32388192]
[1731270624054,0.001678,79476.0,79474.0,0.32888192]
[1731270625035,0.001678,79476.0,79474.0,0.32885862]
[1731270628355,0.001678,79476.0,79475.0,0.142825]
[1731270628551,0.001678,79476.0,79475.0,0.43137245]
[1731270628792,0.001678,79493.0,79475.0,0.43137245]
[1731270628793,0.001678,79493.0,79490.0,0.130801]
[1731270629100,0.001678,79493.0,79490.0,0.60351858]
[1731270629298,0.001678,79493.0,79490.0,0.6010031]
[1731270629510,0.001678,79493.0,79490.0,0.6030031]
[1731270629744,0.001678,79493.0,79490.0,0.45733262]
[1731270630803,0.001678,79493.0,79490.0,0.67581075]
[1731270631680,0.001676,79511.0,79510.0,0.12777]
[1731270631927,0.001676,79511.0,79510.0,0.26122714]
[1731270632173,0.001676,79511.0,79510.0,0.33131655]
[1731270632407,0.001676,79511.0,79510.0,0.32880162]
[1731270634410,0.001676,79511.0,79510.0,0.3779863]
[1731270635944,0.001676,79511.0,79510.0,0.3799863]
[1731270636155,0.001676,79511.0,79510.0,0.3629863]
[1731270636608,0.001676,79511.0,79510.0,0.31180162]
[1731270638214,0.001676,79511.0,79510.0,0.39340162]
[1731270638686,0.000713,79532.0,79526.0,0.125745]
[1731270638907,0.000713,79532.0,79526.0,0.31177662]
[1731270639551,0.000713,79532.0,79526.0,0.31155333]
[1731270640408,0.126449,79532.0,79526.0,0.31155333]
[1731270640620,0.000713,79532.0,79526.0,0.31155333]
[1731270641067,0.000713,79532.0,79526.0,0.18580833]
[1731270641322,0.125741,79528.0,79526.0,0.18580833]
[1731270641539,0.251476,79531.0,79526.0,0.18580833]
[1731270641750,0.126449,79532.0,79526.0,0.31155333]
[1731270642464,0.000713,79532.0,79526.0,0.31155333]
[1731270643770,0.000713,79532.0,79526.0,0.18580833]
[1731270643980,0.125737,79531.0,79526.0,0.18580833]
[1731270644194,0.125739,79530.0,79526.0,0.18580833]
[1731270644406,0.127419,79527.0,79526.0,0.18580833]
[1731270644617,0.127419,79527.0,79526.0,0.05986612]
[1731270645058,0.2560363,79527.0,79526.0,0.05986612]
[1731270645271,0.2610363,79527.0,79526.0,0.05986612]
[1731270646336,0.2560363,79527.0,79526.0,0.05986612]
[1731270646540,0.31209266,79527.0,79526.0,0.08070591]
[1731270646738,0.30957536,79527.0,79526.0,0.08070591]
[1731270647155,0.30457536,79527.0,79526.0,0.08070591]
[1731270647376,0.30457536,79527.0,79526.0,0.05986612]
[1731270648544,0.29957536,79527.0,79526.0,0.05986612]
[1731270651098,0.17715636,79527.0,79526.0,0.05986612]
[1731270651325,0.30541666,79527.0,79526.0,0.05986612]
[1731270651704,0.20289936,79527.0,79526.0,0.05986612]
[1731270651842,0.20541666,79527.0,79526.0,0.05986612]
[1731270652040,0.20289936,79527.0,79526.0,0.05986612]
[1731270653897,0.125743,79527.0,79526.0,0.05979809]
[1731270656542,0.28087471,79530.0,79526.0,0.05979809]
[1731270656543,0.04972305,79530.0,79528.0,0.125741]
[1731270656829,0.000713,79532.0,79531.0,0.125737]
[1731270657199,0.000713,79532.0,79531.0,0.29088393]
[1731270658585,0.126448,79532.0,79531.0,0.16514693]
[1731270658792,0.000713,79532.0,79531.0,0.29088393]
[1731270658993,0.000713,79532.0,79531.0,0.29056623]
[1731270660920,0.000713,79532.0,79531.0,0.16482923]
[1731270661351,0.126448,79532.0,79531.0,0.16482923]
[1731270661686,0.000713,79532.0,79531.0,0.16482923]
[1731270662404,0.000713,79532.0,79531.0,0.29056623]
[1731270662925,0.001676,79537.0,79536.0,0.125729]
[1731270663133,0.001676,79537.0,79536.0,0.29339031]
[1731270663286,0.001676,79537.0,79536.0,0.29087593]
[1731270663712,0.253081,79553.0,79536.0,0.16514693]
[1731270663982,0.253081,79553.0,79537.0,0.18593872]
[1731270664188,0.125709,79549.0,79543.0,0.125717]
[1731270664395,0.251414,79550.0,79544.0,0.05999651]
[1731270664595,0.125706,79551.0,79545.0,0.18571051]
[1731270664802,0.001676,79553.0,79546.0,0.05999651]
[1731270665009,0.001676,79553.0,79547.0,0.18593872]
[1731270665208,0.001676,79553.0,79548.0,0.05999651]
[1731270665209,0.251408,79552.0,79548.0,0.05999651]
[1731270665442,0.001676,79553.0,79549.0,0.18593872]
[1731270665649,0.001676,79553.0,79550.0,0.05999651]
[1731270665843,0.125703,79552.0,79551.0,0.18557791]
[1731270666901,0.125703,79552.0,79551.0,0.05999651]
[1731270669178,0.17765075,79552.0,79551.0,0.05999651]
[1731270669383,0.17765075,79552.0,79551.0,0.08075889]
[1731270669735,0.125716,79544.0,79543.0,0.18917777]
[1731270669944,0.125716,79544.0,79543.0,0.2488852]
[1731270670326,0.125716,79544.0,79543.0,0.05970743]
[1731270671451,0.130716,79544.0,79543.0,0.05970743]
[1731270671610,0.51375821,79544.0,79543.0,0.05970743]
[1731270671958,0.51375821,79544.0,79531.0,0.000838]
[1731270671959,0.125735,79532.0,79531.0,0.000838]
[1731270673365,0.17593616,79532.0,79531.0,0.000838]
[1731270674216,0.21343351,79532.0,79531.0,0.000838]
[1731270674429,0.17593616,79532.0,79531.0,0.000838]
[1731270675456,0.18093616,79532.0,79531.0,0.000838]
[1731270675679,0.70251383,79532.0,79531.0,0.000838]
[1731270675886,0.163757,79518.0,79517.0,0.18917777]
[1731270676105,0.30941498,79518.0,79517.0,0.18917777]
[1731270676846,0.30941498,79518.0,79509.0,0.18917777]
[1731270676847,0.125767,79512.0,79509.0,0.18917777]
[1731270677047,0.34441484,79512.0,79509.0,0.18917777]
[1731270677433,0.34941484,79512.0,79509.0,0.18917777]
[1731270677637,0.34941484,79512.0,79501.0,0.18917777]
[1731270677638,0.43293754,79512.0,79501.0,0.18917777]
[1731270677833,0.47044267,79512.0,79501.0,0.18917777]
[1731270678147,0.47042389,79512.0,79501.0,0.18917777]
[1731270678351,0.43293754,79512.0,79501.0,0.18917777]
[1731270680448,0.1762897,79512.0,79501.0,0.18917777]
[1731270681808,0.1762897,79512.0,79502.0,0.02074848]
[1731270682068,0.1762897,79512.0,79501.0,0.18917777]
[1731270683972,0.1762897,79512.0,79502.0,0.01281815]
[1731270684179,0.1762897,79512.0,79503.0,0.01281815]
[1731270684383,0.1762897,79512.0,79504.0,0.01281815]
[1731270684586,0.1762897,79512.0,79505.0,0.01281815]
[1731270684788,0.1762897,79512.0,79501.0,0.18917777]
[1731270684915,0.1762897,79512.0,79502.0,0.0128159]
[1731270685138,0.1762897,79512.0,79503.0,0.0128159]
[1731270685508,0.1762897,79512.0,79504.0,0.0128159]
[1731270685685,0.1762897,79512.0,79501.0,0.18917777]
[1731270685917,0.1762897,79512.0,79502.0,0.01281321]
[1731270686122,0.1762897,79512.0,79503.0,0.01281321]
[1731270686315,0.1762897,79512.0,79504.0,0.01281109]
[1731270686602,0.1762897,79512.0,79501.0,0.18917777]
[1731270686742,0.1762897,79512.0,79502.0,0.01281108]
[1731270686910,0.1762897,79512.0,79501.0,0.18917777]
[1731270686911,0.1762897,79512.0,79503.0,0.01281115]
[1731270687106,0.1762897,79512.0,79504.0,0.01281107]
[1731270687333,0.1762897,79512.0,79502.0,0.01280963]
[1731270687540,0.1762897,79512.0,79503.0,0.01280963]
[1731270687745,0.1762897,79512.0,79501.0,0.18917777]
[1731270687969,0.1762897,79512.0,79502.0,0.01280943]
[1731270688281,0.1762897,79512.0,79503.0,0.01280943]
[1731270688427,0.1762897,79512.0,79504.0,0.01280943]
[1731270688628,0.1762897,79512.0,79501.0,0.18917777]
[1731270688831,0.1762897,79512.0,79502.0,0.01280902]
[1731270689215,0.1762897,79512.0,79503.0,0.01280902]
[1731270689415,0.1762897,79512.0,79502.0,0.18917777]
[1731270689416,0.34023191,79512.0,79502.0,0.18917777]
[1731270691384,0.46633191,79512.0,79502.0,0.18917777]
[1731270691599,0.125781,79503.0,79502.0,0.18917777]
[1731270692209,0.125795,79494.0,79481.0,0.252215]
[1731270692408,0.125795,79494.0,79493.0,0.20198686]
[1731270693033,0.125795,79494.0,79493.0,0.01280909]
[1731270693659,0.1258,79491.0,79481.0,0.1264]
[1731270694716,0.1258,79491.0,79490.0,0.01365566]
[1731270696540,0.1258,79491.0,79490.0,0.03416359]
[1731270699218,0.1258,79491.0,79490.0,0.05982546]
[1731270701756,0.1258,79491.0,79490.0,0.03416359]
[1731270702540,0.1258,79491.0,79490.0,0.05991821]
[1731270703192,0.1258,79491.0,79490.0,0.08042932]
[1731270703404,0.125796,79494.0,79490.0,0.19390335]
[1731270703648,0.023,79512.0,79490.0,0.19390335]
[1731270703649,0.125787,79500.0,79496.0,0.002]
[1731270703860,0.001676,79512.0,79498.0,0.0205585]
[1731270704067,0.001676,79512.0,79497.0,0.26202142]
[1731270704068,0.251571,79501.0,79500.0,0.02055363]
[1731270704273,0.377355,79501.0,79500.0,0.08143329]
[1731270704482,0.377355,79501.0,79500.0,0.07963734]
[1731270704693,0.377355,79501.0,79500.0,0.05908371]
[1731270707301,0.1258,79491.0,79490.0,0.00888193]
[1731270707493,0.251594,79494.0,79490.0,0.19399316]
[1731270707733,0.125799,79492.0,79491.0,0.18511123]
[1731270708178,0.27156891,79492.0,79491.0,0.05916902]
[1731270708608,0.27156891,79492.0,79491.0,0.07975202]
[1731270709014,0.27156891,79492.0,79491.0,0.05916902]
[1731270709476,0.27156891,79492.0,79491.0,0.06722811]
[1731270709730,0.125799,79492.0,79491.0,0.05916902]
[1731270709915,0.100799,79492.0,79491.0,0.07975185]
[1731270710118,0.100799,79492.0,79491.0,0.05916902]
[1731270710528,0.100799,79492.0,79491.0,0.06722811]
[1731270710665,0.14576991,79511.0,79491.0,0.19317032]
[1731270710867,0.125782,79502.0,79501.0,0.02058329]
[1731270711118,0.125782,79502.0,79501.0,0.05915666]
[1731270711754,0.05352427,79512.0,79501.0,0.05915666]
[1731270711755,0.05352427,79512.0,79501.0,0.18509887]
[1731270711954,0.05352427,79512.0,79504.0,0.02057736]
[1731270712123,0.25154,79510.0,79502.0,0.01404567]
[1731270712304,0.001676,79512.0,79505.0,0.0205769]
[1731270712509,0.127443,79512.0,79508.0,0.0205769]
[1731270712708,0.127443,79512.0,79509.0,0.18509236]
[1731270712910,0.127443,79512.0,79510.0,0.05915015]
[1731270713128,0.127443,79512.0,79511.0,0.08125491]
[1731270713337,0.001676,79512.0,79511.0,0.08125491]
[1731270713535,0.127443,79512.0,79511.0,0.08125491]
[1731270714044,0.001676,79512.0,79511.0,0.08125491]
[1731270714760,0.127443,79512.0,79511.0,0.08125491]
[1731270715184,0.127443,79512.0,79511.0,0.05915015]
[1731270716315,0.001676,79512.0,79511.0,0.07970312]
[1731270716519,0.001676,79512.0,79511.0,0.28694533]
[1731270716721,0.001676,79512.0,79511.0,0.44027546]
[1731270716971,0.001676,79512.0,79511.0,0.31199236]
[1731270717368,0.001676,79512.0,79511.0,0.43776036]
[1731270717804,0.001676,79512.0,79511.0,0.31199236]
[1731270718001,0.001676,79512.0,79511.0,0.43776036]
[1731270718845,0.001676,79512.0,79511.0,0.43765166]
[1731270719683,0.001676,79512.0,79511.0,0.31188366]
[1731270720099,0.001676,79512.0,79511.0,0.43765166]
[1731270720842,0.001676,79512.0,79511.0,0.43965166]
[1731270721047,0.001676,79512.0,79511.0,0.43765166]
[1731270721909,0.001676,79512.0,79511.0,0.31188366]
[1731270722517,0.127443,79512.0,79511.0,0.05904145]
[1731270722935,0.001676,79512.0,79511.0,0.05904145]
[1731270723143,0.127443,79512.0,79511.0,0.0730756]
[1731270723365,0.001676,79512.0,79511.0,0.0730756]
[1731270723799,0.127443,79512.0,79511.0,0.0730756]
[1731270724277,0.127443,79512.0,79511.0,0.05904145]
[1731270724533,0.125776,79506.0,79505.0,0.0813]
[1731270724740,0.251541,79510.0,79505.0,0.26565661]
[1731270724741,0.12577,79510.0,79505.0,0.26565661]
[1731270724909,0.001676,79512.0,79509.0,0.02032006]
[1731270725116,0.001676,79512.0,79511.0,0.02032006]
[1731270725332,0.127443,79512.0,79511.0,0.20467532]
[1731270725480,0.127443,79512.0,79511.0,0.18435661]
[1731270725882,0.001676,79512.0,79511.0,0.18435661]
[1731270726132,0.001676,79512.0,79511.0,0.2099397]
[1731270726505,0.001676,79512.0,79511.0,0.3357077]
[1731270726735,0.001676,79512.0,79511.0,0.35602641]
[1731270726942,0.001676,79512.0,79511.0,0.23025841]
[1731270727112,0.001676,79512.0,79511.0,0.3357077]
[1731270727473,0.001676,79512.0,79511.0,0.4776077]
[1731270727928,0.001676,79512.0,79511.0,0.4796077]
[1731270729104,0.125739,79530.0,79522.0,0.125749]
[1731270729334,0.127411,79532.0,79526.0,0.125744]
[1731270729675,0.127411,79532.0,79531.0,0.125737]
[1731270729676,0.001676,79532.0,79531.0,0.125737]
[1731270729880,0.001676,79532.0,79531.0,0.31259775]
[1731270730109,0.001676,79532.0,79531.0,0.31008335]
[1731270730322,0.001676,79532.0,79531.0,0.31708335]
[1731270730497,0.001676,79532.0,79531.0,0.35266644]
[1731270731079,0.125711,79548.0,79540.0,0.125721]
[1731270731281,0.001676,79552.0,79549.0,0.125707]
[1731270731485,0.001676,79552.0,79550.0,0.15879642]
[1731270731696,0.001676,79552.0,79551.0,0.18602089]
[1731270731888,0.001676,79552.0,79551.0,0.1842581]
[1731270732327,0.001676,79552.0,79551.0,0.3099631]
[1731270732531,0.001676,79552.0,79551.0,0.33358288]
[1731270732735,0.127379,79552.0,79551.0,0.20787788]
[1731270733544,0.001676,79552.0,79551.0,0.20787788]
[1731270734099,0.001676,79552.0,79551.0,0.33558288]
[1731270734300,0.001676,79552.0,79551.0,0.33358288]
[1731270734509,0.001676,79552.0,79551.0,0.20787788]
[1731270734714,0.127379,79552.0,79551.0,0.14956199]
[1731270734918,0.127379,79552.0,79551.0,0.20778373]
[1731270735120,0.001676,79552.0,79551.0,0.20778373]
[1731270735963,0.127379,79552.0,79551.0,0.20778373]
[1731270736170,0.001676,79552.0,79551.0,0.33348873]
[1731270736314,0.001676,79552.0,79551.0,0.33548873]
[1731270737260,0.001676,79552.0,79551.0,0.33348873]
[1731270737593,0.001676,79552.0,79551.0,0.33548873]
[1731270737989,0.001676,79552.0,79551.0,0.33348873]
[1731270738197,0.001676,79552.0,79551.0,0.33268873]
[1731270738630,0.001676,79552.0,79551.0,0.33468873]
[1731270738838,0.001676,79552.0,79551.0,0.38443513]
[1731270739873,0.001676,79552.0,79551.0,0.39943513]
[1731270740286,0.000712,79555.0,79554.0,0.1327]
[1731270740487,0.000712,79555.0,79554.0,0.31937745]
[1731270740607,0.000712,79555.0,79554.0,0.31686395]
[1731270740811,0.000712,79555.0,79554.0,0.3168177]
[1731270741142,0.000712,79555.0,79554.0,0.3148177]
[1731270741350,0.000712,79555.0,79554.0,0.35100818]
[1731270742730,0.000712,79555.0,79554.0,0.34600818]
[1731270742940,0.000712,79555.0,79554.0,0.22030818]
[1731270743373,0.000712,79555.0,79554.0,0.1841177]
[1731270743576,0.126411,79555.0,79554.0,0.1841177]
[1731270743993,0.000712,79555.0,79554.0,0.1841177]
[1731270744197,0.126411,79555.0,79554.0,0.1841177]
[1731270744851,0.000712,79555.0,79554.0,0.1841177]
[1731270745274,0.126411,79555.0,79554.0,0.22007471]
[1731270745520,0.126411,79555.0,79554.0,0.1841177]
[1731270747990,0.000712,79555.0,79554.0,0.1841177]
[1731270748412,0.126411,79555.0,79554.0,0.1841177]
[1731270751010,0.000712,79555.0,79554.0,0.1841177]
[1731270751468,0.000712,79555.0,79554.0,0.3098177]
[1731270751690,0.000712,79555.0,79554.0,0.3920177]
[1731270751907,0.000712,79555.0,79554.0,0.3940177]
[1731270752140,0.000712,79555.0,79554.0,0.3920177]
[1731270753093,0.251366,79566.0,79554.0,0.2663177]
[1731270753301,0.14576991,79576.0,79557.0,0.002]
[1731270753509,0.376978,79580.0,79563.0,0.125685]
[1731270753773,0.12567,79573.0,79564.0,0.12845569]
[1731270753984,0.251317,79581.0,79566.0,0.125681]
[1731270753985,0.125672,79572.0,79566.0,0.125681]
[1731270754201,0.125672,79572.0,79567.0,0.12594221]
[1731270754441,0.251317,79581.0,79567.0,0.12594221]
[1731270754442,0.251317,79581.0,79568.0,0.18917777]
[1731270754659,0.09603523,79584.0,79569.0,0.17002231]
[1731270754918,0.125675,79570.0,79569.0,0.12594221]
[1731270755123,0.34734223,79584.0,79569.0,0.12594221]
[1731270755333,0.125664,79578.0,79572.0,0.125671]
[1731270755535,0.125664,79577.0,79573.0,0.12594221]
[1731270755792,0.251316,79581.0,79573.0,0.12594221]
[1731270756002,0.000712,79586.0,79575.0,0.125666]
[1731270756212,0.125657,79582.0,79576.0,0.12594221]